[Event "Romanian Championship Open 2025"]
[Site "Craiova"]
[Date "2025.02.16"]
[Round "2.14"]
[White "Korcsek, Alexandru-David"]
[Black "Dobre, Claudiu-Cristian"]
[Result "1/2-1/2"]
[Annotator "ChessBase"]
[ECO "B12"]
[WhiteElo "2127"]
[BlackElo "2279"]
[PlyCount "64"]
[EventDate "2025.02.12"]
[EventCountry "ROU"]
[SourceTitle "playchess.com"]
[Source "ChessBase"]
[SourceQuality "1"]
[TimeControl "40/5400+30:900+30"]

1. e4 {[%emt 0:00:04]} c6 {[%emt 0:00:06]} 2. d4 {[%emt 0:00:15]} d5 {[%emt 0:00:05]} 3. e5 {[%emt 0:00:11]} c5 {[%emt 0:00:03]} 4. dxc5 {[%emt 0:00:09]} e6 {[%emt 0:00:04]} 5. Qg4 {[%emt 0:00:26]} Nc6 {[%emt 0:01:45]} 6. Nf3 {[%emt 0:00:53]} h5 {[%emt 0:03:56]} 7. Qf4 {[%emt 0:01:02]} Bxc5 {[%emt 0:01:48]} 8. Be2 {[%emt 0:04:10]} f6 {[%emt 0:17:05]} 9. Qg3 {[%emt 0:15:15]} Kf7 {[%emt 0:01:28]} 10. O-O {[%emt 0:05:14]} Nge7 {[%emt 0:22:37]} 11. Bd3 {[%emt 0:05:59]} Nb4 {[%emt 0:03:32]} 12. h4 {[%emt 0:15:27]} Nxd3 {[%emt 0:16:40]} 13. cxd3 {[%emt 0:00:11]} Nf5 {[%emt 0:00:02]} 14. Qf4 {[%emt 0:01:20]} Qb6 {[%emt 0:00:24]} 15. Nbd2 {[%emt 0:02:55]} Qb4 {[%emt 0:03:46]} 16. Nb3 {[%emt 0:02:21]} Qxf4 {[%emt 0:01:18]} 17. Bxf4 {[%emt 0:00:11]} Bb6 {[%emt 0:01:59]} 18. a4 {[%emt 0:06:23]} Bc7 {[%emt 0:07:24]} 19. Rfc1 {[%emt 0:05:47]} Bb8 {[%emt 0:00:09]} 20. a5 {[%emt 0:00:53]} Nxh4 {[%emt 0:02:43]} 21. Nxh4 {[%emt 0:01:04]} g5 {[%emt 0:00:05]} 22. Bh2 {[%emt 0:02:05]} gxh4 {[%emt 0:00:05]} 23. exf6 {[%emt 0:00:16]} Kxf6 {[%emt 0:05:02]} 24. Bxb8 {[%emt 0:05:52]} Rxb8 {[%emt 0:00:06]} 25. Rc7 {[%emt 0:00:25]} Rd8 {[%emt 0:00:42]} 26. Ra4 {[%emt 0:03:05]} e5 {[%emt 0:01:58]} 27. Rxh4 {[%emt 0:01:52]} Bg4 {[%emt 0:00:48]} 28. f3 {[%emt 0:07:05]} Kg5 {[%emt 0:01:50]} 29. Rg7+ {[%emt 0:03:45]} Kf6 {[%emt 0:00:03]} 30. Rc7 {[%emt 0:00:14]} Kg5 {[%emt 0:06:42]} 31. Rg7+ {[%emt 0:05:00]} Kf6 {[%emt 0:00:03]} 32. Rc7 {[%emt 0:00:07]} Kg5 {[%emt 0:00:48]} 1/2-1/2

[Event "Romanian Championship Open 2025"]
[Site "Craiova"]
[Date "2025.02.16"]
[Round "2.15"]
[White "Manea, Alexandru"]
[Black "Botea, David-Alexandru"]
[Result "1/2-1/2"]
[Annotator "ChessBase"]
[ECO "D46"]
[WhiteElo "2272"]
[BlackElo "2127"]
[PlyCount "50"]
[EventDate "2025.02.12"]
[EventCountry "ROU"]
[SourceTitle "playchess.com"]
[Source "ChessBase"]
[SourceQuality "1"]
[TimeControl "40/5400+30:900+30"]

1. c4 {[%emt 0:03:06]} c6 {[%emt 0:00:07]} 2. Nf3 {[%emt 0:03:17]} d5 {[%emt 0:00:04]} 3. e3 {[%emt 0:00:06]} Nf6 {[%emt 0:00:10]} 4. Nc3 {[%emt 0:00:08]} e6 {[%emt 0:05:13]} 5. d4 {[%emt 0:02:09]} Bd6 {[%emt 0:00:46]} 6. Bd3 {[%emt 0:00:36]} dxc4 {[%emt 0:03:26]} 7. Bxc4 {[%emt 0:00:12]} b5 {[%emt 0:02:35]} 8. Be2 {[%emt 0:00:12]} a6 {[%emt 0:02:01]} 9. O-O {[%emt 0:00:22]} O-O {[%emt 0:02:01]} 10. Qc2 {[%emt 0:06:26]} Nbd7 {[%emt 0:05:57]} 11. Rd1 {[%emt 0:14:57]} Qc7 {[%emt 0:04:01]} 12. Bd2 {[%emt 0:00:14]} c5 {[%emt 0:11:16]} 13. dxc5 {[%emt 0:06:29]} Qxc5 {[%emt 0:07:24]} 14. Rac1 {[%emt 0:01:40]} Bb7 {[%emt 0:00:21]} 15. Be1 {[%emt 0:00:37]} Be7 {[%emt 0:08:07]} 16. Qd2 {[%emt 0:20:40]} Qb6 {[%emt 0:02:11]} 17. Qd4 {[%emt 0:01:21]} Rfd8 {[%emt 0:02:42]} 18. Qxb6 {[%emt 0:08:49]} Nxb6 {[%emt 0:00:02]} 19. Ne5 {[%emt 0:00:10]} Rac8 {[%emt 0:07:10]} 20. Rxd8+ {[%emt 0:06:42]} Bxd8 {[%emt 0:00:30]} 21. Bf3 {[%emt 0:01:14]} Bxf3 {[%emt 0:01:17]} 22. gxf3 {[%emt 0:07:58]} Na4 {[%emt 0:11:58]} 23. b3 {[%emt 0:01:13]} Nxc3 {[%emt 0:00:12]} 24. Rxc3 {[%emt 0:00:06]} Rxc3 {[%emt 0:01:06]} 25. Bxc3 {[%emt 0:00:03]} Nd5 {[%emt 0:01:10]} 1/2-1/2

[Event "Romanian Championship Open 2025"]
[Site "Craiova"]
[Date "2025.02.16"]
[Round "2.16"]
[White "Panc, Samuel"]
[Black "Nastase, Robert-Paul"]
[Result "0-1"]
[Annotator "ChessBase"]
[ECO "C00"]
[WhiteElo "2036"]
[BlackElo "2259"]
[PlyCount "120"]
[EventDate "2025.02.12"]
[EventCountry "ROU"]
[SourceTitle "playchess.com"]
[Source "ChessBase"]
[SourceQuality "1"]
[TimeControl "40/5400+30:900+30"]

1. e4 {[%emt 0:00:02]} e6 {[%emt 0:08:22]} 2. d3 {[%emt 0:00:43]} d5 {[%emt 0:00:04]} 3. Nd2 {[%emt 0:00:04]} c5 {[%emt 0:00:07]} 4. g3 {[%emt 0:00:06]} Nc6 {[%emt 0:00:02]} 5. Bg2 {[%emt 0:00:08]} Nf6 {[%emt 0:00:03]} 6. Ngf3 {[%emt 0:00:06]} Be7 {[%emt 0:00:03]} 7. O-O {[%emt 0:00:06]} O-O {[%emt 0:00:06]} 8. e5 {[%emt 0:00:02]} Nd7 {[%emt 0:00:05]} 9. Re1 {[%emt 0:00:02]} b5 {[%emt 0:00:04]} 10. h4 {[%emt 0:00:42]} a5 {[%emt 0:00:32]} 11. Nf1 {[%emt 0:00:23]} a4 {[%emt 0:00:03]} 12. Bf4 {[%emt 0:00:54]} a3 {[%emt 0:00:05]} 13. b3 {[%emt 0:00:24]} b4 {[%emt 0:00:03]} 14. N1h2 {[%emt 0:04:47]} Bb7 {[%emt 0:00:13]} 15. Ng5 {[%emt 0:01:23]} Qe8 {[%emt 0:00:04]} 16. Ng4 {[%emt 0:05:29]} Nd4 {[%emt 0:01:27]} 17. Ne3 {[%emt 0:09:25]} Ra6 {[%emt 0:00:27]} 18. Rc1 {[%emt 0:05:49]} Nb5 {[%emt 0:04:36]} 19. Qh5 {[%emt 0:00:46]} Bxg5 {[%emt 0:00:06]} 20. hxg5 {[%emt 0:00:28]} f5 {[%emt 0:00:07]} 21. Qh1 {[%emt 0:04:17]} Ba8 {[%emt 0:13:03]} 22. Bf3 {[%emt 0:21:59]} Nc3 {[%emt 0:02:00]} 23. Ra1 {[%emt 0:00:15]} Nb6 {[%emt 0:10:03]} 24. Ng2 {[%emt 0:05:46]} d4 {[%emt 0:04:43]} 25. Bxa8 {[%emt 0:00:58]} Qxa8 {[%emt 0:00:06]} 26. Bd2 {[%emt 0:00:06]} Ncd5 {[%emt 0:07:47]} 27. Nf4 {[%emt 0:03:58]} Nxf4 {[%emt 0:00:07]} 28. Qxa8 {[%emt 0:00:27]} Raxa8 {[%emt 0:00:11]} 29. gxf4 {[%emt 0:08:40]} Kf7 {[%emt 0:00:15]} 30. Kh2 {[%emt 0:07:39]} h6 {[%emt 0:00:05]} 31. gxh6 {[%emt 0:00:11]} Rh8 {[%emt 0:00:54]} 32. Rh1 {[%emt 0:05:25]} Rxh6+ {[%emt 0:00:56]} 33. Kg2 {[%emt 0:00:04]} Rah8 {[%emt 0:09:01]} 34. Rxh6 {[%emt 0:02:36]} gxh6 {[%emt 0:02:34]} 35. Rh1 {[%emt 0:13:13]} h5 {[%emt 0:00:06]} 36. Kf3 {[%emt 0:00:30]} h4 {[%emt 0:01:08]} 37. Be1 {[%emt 0:00:28]} Nd5 {[%emt 0:00:19]} 38. Bd2 {[%emt 0:00:04]} Rh6 {[%emt 0:01:19]} 39. Rg1 {[%emt 0:00:30]} Rg6 {[%emt 0:01:38]} 40. Rxg6 {[%emt 0:00:00]} Kxg6 {[%emt 0:00:00]} 41. Kg2 {[%emt 0:01:09]} Kh5 {[%emt 0:01:34]} 42. Kh3 {[%emt 0:00:26]} Ne7 {[%emt 0:02:05]} 43. Be1 {[%emt 0:00:47]} Ng8 {[%emt 0:01:25]} 44. Bd2 {[%emt 0:05:03]} Nh6 {[%emt 0:01:23]} 45. Be1 {[%emt 0:01:02]} Ng8 {[%emt 0:00:34]} 46. Bd2 {[%emt 0:00:06]} Ne7 {[%emt 0:00:02]} 47. Be1 {[%emt 0:00:07]} Ng6 {[%emt 0:00:02]} 48. Bd2 {[%emt 0:00:06]} Kh6 {[%emt 0:00:04]} 49. Bc1 {[%emt 0:00:43]} Kg7 {[%emt 0:00:32]} 50. Bd2 {[%emt 0:00:34]} Kh7 {[%emt 0:00:05]} 51. Bc1 {[%emt 0:00:04]} Kh6 {[%emt 0:00:04]} 52. Bd2 {[%emt 0:00:04]} Kh5 {[%emt 0:00:03]} 53. Bc1 {[%emt 0:00:04]} Ne7 {[%emt 0:00:14]} 54. Bd2 {[%emt 0:12:33]} Nd5 {[%emt 0:00:00]} 55. Be1 {[%emt 0:00:45]} Nxf4+ {[%emt 0:00:00]} 56. Kh2 {[%emt 0:00:05]} Kg4 {[%emt 0:00:06]} 57. f3+ {[%emt 0:00:40]} Kxf3 {[%emt 0:00:30]} 58. Bxh4 {[%emt 0:00:03]} Nd5 {[%emt 0:00:06]} 59. Bg5 {[%emt 0:00:20]} Nc3 {[%emt 0:00:34]} 60. Be7 {[%emt 0:00:21]} Nxa2 {[%emt 0:00:09]} 0-1

[Event "Romanian Championship Open 2025"]
[Site "Craiova"]
[Date "2025.02.16"]
[Round "2.17"]
[White "Craciun, Sasha-Matei"]
[Black "Toma, Iustin"]
[Result "1-0"]
[Annotator "ChessBase"]
[ECO "B66"]
[WhiteElo "2257"]
[BlackElo "2118"]
[PlyCount "59"]
[EventDate "2025.02.12"]
[EventCountry "ROU"]
[SourceTitle "playchess.com"]
[Source "ChessBase"]
[SourceQuality "1"]
[TimeControl "40/5400+30:900+30"]

1. e4 {[%emt 0:00:03]} c5 {[%emt 0:00:41]} 2. Nf3 {[%emt 0:00:05]} d6 {[%emt 0:00:06]} 3. d4 {[%emt 0:00:03]} cxd4 {[%emt 0:00:05]} 4. Nxd4 {[%emt 0:00:02]} Nf6 {[%emt 0:00:07]} 5. Nc3 {[%emt 0:00:03]} Nc6 {[%emt 0:00:07]} 6. Bg5 {[%emt 0:00:41]} e6 {[%emt 0:00:10]} 7. Qd2 {[%emt 0:00:36]} Be7 {[%emt 0:00:07]} 8. O-O-O {[%emt 0:01:03]} a6 {[%emt 0:00:04]} 9. f3 {[%emt 0:02:46]} Nxd4 {[%emt 0:00:32]} 10. Qxd4 {[%emt 0:00:03]} b5 {[%emt 0:00:17]} 11. Kb1 {[%emt 0:00:59]} Qc7 {[%emt 0:03:21]} 12. Qd2 {[%emt 0:02:54]} Bb7 {[%emt 0:00:39]} 13. Ne2 {[%emt 0:01:04]} Rc8 {[%emt 0:04:54]} 14. Nd4 {[%emt 0:02:07]} h6 {[%emt 0:01:37]} 15. Be3 {[%emt 0:01:43]} O-O {[%emt 0:16:14]} 16. g4 {[%emt 0:17:28]} Nd7 {[%emt 0:00:38]} 17. Rg1 {[%emt 0:06:19]} Ne5 {[%emt 0:35:15]} 18. g5 {[%emt 0:07:01]} h5 {[%emt 0:08:12]} 19. g6 {[%emt 0:09:09]} Nxg6 {[%emt 0:06:56]} 20. Bh3 {[%emt 0:03:02]} Nh4 {[%emt 0:17:42]} 21. Bg5 {[%emt 0:16:58]} Rce8 {[%emt 0:02:05]} 22. Bxh4 {[%emt 0:02:12]} Bxh4 {[%emt 0:00:10]} 23. Qh6 {[%emt 0:00:43]} f5 {[%emt 0:01:26]} 24. Nxe6 {[%emt 0:00:35]} Rxe6 {[%emt 0:00:05]} 25. Qxe6+ {[%emt 0:00:04]} Kh8 {[%emt 0:00:13]} 26. Qg6 {[%emt 0:01:10]} Qf7 {[%emt 0:00:43]} 27. Qxf7 {[%emt 0:01:17]} Rxf7 {[%emt 0:00:06]} 28. Bxf5 {[%emt 0:00:13]} d5 {[%emt 0:00:12]} 29. Be6 {[%emt 0:01:04]} Rxf3 {[%emt 0:01:10]} 30. Bxd5 {[%emt 0:00:02]} 1-0

[Event "Romanian Championship Open 2025"]
[Site "Craiova"]
[Date "2025.02.16"]
[Round "2.18"]
[White "Costache, Andrei Eugeniu"]
[Black "Bida, Mihai-Eugen"]
[Result "0-1"]
[Annotator "ChessBase"]
[ECO "B81"]
[WhiteElo "2075"]
[BlackElo "2413"]
[PlyCount "112"]
[EventDate "2025.02.12"]
[EventCountry "ROU"]
[SourceTitle "playchess.com"]
[Source "ChessBase"]
[SourceQuality "1"]
[TimeControl "40/5400+30:900+30"]

1. e4 {[%emt 0:00:04]} c5 {[%emt 0:00:07]} 2. Nf3 {[%emt 0:00:09]} d6 {[%emt 0:00:06]} 3. d4 {[%emt 0:00:24]} cxd4 {[%emt 0:00:06]} 4. Nxd4 {[%emt 0:00:06]} Nf6 {[%emt 0:00:05]} 5. Nc3 {[%emt 0:00:24]} a6 {[%emt 0:00:05]} 6. h3 {[%emt 0:00:52]} e6 {[%emt 0:00:21]} 7. g4 {[%emt 0:02:41]} h6 {[%emt 0:00:55]} 8. Bg2 {[%emt 0:01:43]} Be7 {[%emt 0:01:57]} 9. Be3 {[%emt 0:01:07]} Nfd7 {[%emt 0:04:11]} 10. Qe2 {[%emt 0:10:22]} Qc7 {[%emt 0:08:04]} 11. O-O-O {[%emt 0:07:46]} Nc6 {[%emt 0:09:08]} 12. f4 {[%emt 0:03:19]} Na5 {[%emt 0:03:51]} 13. Rhe1 {[%emt 0:10:48]} g5 {[%emt 0:12:53]} 14. Qf2 {[%emt 0:28:42]} Nc4 {[%emt 0:06:33]} 15. Kb1 {[%emt 0:10:13]} Nxe3 {[%emt 0:01:39]} 16. Rxe3 {[%emt 0:00:44]} gxf4 {[%emt 0:00:37]} 17. Re2 {[%emt 0:01:22]} Qc5 {[%emt 0:03:52]} 18. Qf3 {[%emt 0:04:47]} Qg5 {[%emt 0:02:58]} 19. Rf1 {[%emt 0:01:27]} Ne5 {[%emt 0:01:54]} 20. Qxf4 {[%emt 0:01:29]} Qxf4 {[%emt 0:00:10]} 21. Rxf4 {[%emt 0:00:05]} b5 {[%emt 0:00:50]} 22. Rf1 {[%emt 0:01:02]} Bb7 {[%emt 0:00:54]} 23. Nf3 {[%emt 0:02:19]} Ng6 {[%emt 0:03:12]} 24. Ne1 {[%emt 0:02:38]} Rc8 {[%emt 0:04:15]} 25. Nd3 {[%emt 0:00:17]} Rc4 {[%emt 0:00:51]} 26. a3 {[%emt 0:02:19]} Ne5 {[%emt 0:02:01]} 27. Nxe5 {[%emt 0:00:16]} dxe5 {[%emt 0:00:01]} 28. Rd1 {[%emt 0:04:16]} Rc8 {[%emt 0:00:28]} 29. Na2 {[%emt 0:01:46]} Rd8 {[%emt 0:00:53]} 30. Rxd8+ {[%emt 0:00:20]} Bxd8 {[%emt 0:00:01]} 31. Nc1 {[%emt 0:00:27]} Bc7 {[%emt 0:02:34]} 32. Nd3 {[%emt 0:00:14]} Bd6 {[%emt 0:00:06]} 33. Kc1 {[%emt 0:00:31]} Ke7 {[%emt 0:01:17]} 34. Kd2 {[%emt 0:01:04]} Rg8 {[%emt 0:00:08]} 35. Ke3 {[%emt 0:01:06]} Rc8 {[%emt 0:00:49]} 36. c3 {[%emt 0:00:44]} a5 {[%emt 0:01:03]} 37. Bf3 {[%emt 0:00:28]} Bb8 {[%emt 0:00:30]} 38. Kf2 {[%emt 0:00:11]} Rd8 {[%emt 0:00:46]} 39. Rd2 {[%emt 0:00:46]} f5 {[%emt 0:00:35]} 40. gxf5 {[%emt 0:00:00]} exf5 {[%emt 0:00:00]} 41. exf5 {[%emt 0:01:40]} e4 {[%emt 0:00:42]} 42. Bg2 {[%emt 0:02:51]} Ba7+ {[%emt 0:01:43]} 43. Ke1 {[%emt 0:00:56]} Kf6 {[%emt 0:06:14]} 44. b4 {[%emt 0:02:18]} Ba8 {[%emt 0:03:02]} 45. Rd1 {[%emt 0:02:44]} exd3 {[%emt 0:00:39]} 46. Bxa8 {[%emt 0:00:06]} Rxa8 {[%emt 0:00:10]} 47. Rxd3 {[%emt 0:00:06]} axb4 {[%emt 0:00:20]} 48. axb4 {[%emt 0:00:21]} Re8+ {[%emt 0:00:31]} 49. Kf1 {[%emt 0:00:25]} Kxf5 {[%emt 0:00:26]} 50. Rd5+ {[%emt 0:00:51]} Re5 {[%emt 0:00:19]} 51. Rd6 {[%emt 0:00:02]} Be3 {[%emt 0:04:28]} 52. Rc6 {[%emt 0:00:44]} Ke4 {[%emt 0:00:22]} 53. c4 {[%emt 0:00:57]} bxc4 {[%emt 0:00:26]} 54. Rxc4+ {[%emt 0:00:05]} Kf3 {[%emt 0:00:07]} 55. Rc3 {[%emt 0:01:06]} Rg5 {[%emt 0:00:29]} 56. Rxe3+ {[%emt 0:00:23]} Kxe3 {[%emt 0:00:05]} 0-1

[Event "Romanian Championship Open 2025"]
[Site "Craiova"]
[Date "2025.02.16"]
[Round "2.19"]
[White "Ilinca, Felix-Antonio"]
[Black "Buzbuchi, Ionut"]
[Result "1-0"]
[Annotator "ChessBase"]
[ECO "B13"]
[WhiteElo "2412"]
[BlackElo "2034"]
[PlyCount "49"]
[EventDate "2025.02.12"]
[EventCountry "ROU"]
[SourceTitle "playchess.com"]
[Source "ChessBase"]
[SourceQuality "1"]
[TimeControl "40/5400+30:900+30"]

1. d4 {[%emt 0:00:06]} Nf6 {[%emt 0:00:06]} 2. Nc3 {[%emt 0:00:21]} d5 {[%emt 0:00:06]} 3. Bf4 {[%emt 0:00:12]} c5 {[%emt 0:00:42]} 4. e3 {[%emt 0:00:18]} cxd4 {[%emt 0:00:10]} 5. exd4 {[%emt 0:00:19]} a6 {[%emt 0:00:08]} 6. Nf3 {[%emt 0:00:17]} Nc6 {[%emt 0:00:48]} 7. Ne5 {[%emt 0:00:22]} Bd7 {[%emt 0:00:50]} 8. g4 {[%emt 0:00:34]} h6 {[%emt 0:00:45]} 9. h4 {[%emt 0:05:48]} e6 {[%emt 0:01:47]} 10. Bg2 {[%emt 0:05:58]} Qb6 {[%emt 0:04:01]} 11. Nxc6 {[%emt 0:09:33]} Qxb2 {[%emt 0:14:54]} 12. Rh3 {[%emt 0:04:50]} Bxc6 {[%emt 0:00:30]} 13. Rb1 {[%emt 0:02:12]} Qa3 {[%emt 0:01:36]} 14. Nxd5 {[%emt 0:01:42]} Qa5+ {[%emt 0:00:05]} 15. Bd2 {[%emt 0:00:12]} Qd8 {[%emt 0:00:21]} 16. Nxf6+ {[%emt 0:00:41]} Qxf6 {[%emt 0:08:14]} 17. Bxc6+ {[%emt 0:16:37]} bxc6 {[%emt 0:00:04]} 18. Qf3 {[%emt 0:00:41]} Qxf3 {[%emt 0:01:34]} 19. Rxf3 {[%emt 0:02:36]} Be7 {[%emt 0:08:14]} 20. Rb7 {[%emt 0:00:37]} Bf6 {[%emt 0:03:11]} 21. g5 {[%emt 0:04:22]} hxg5 {[%emt 0:02:01]} 22. hxg5 {[%emt 0:00:53]} O-O-O {[%emt 0:00:07]} 23. Rfb3 {[%emt 0:02:53]} Bxd4 {[%emt 0:00:36]} 24. Ba5 {[%emt 0:01:05]} Be5 {[%emt 0:03:16]} 25. Bxd8 {[%emt 0:00:26]} 1-0

[Event "Romanian Championship Open 2025"]
[Site "Craiova"]
[Date "2025.02.16"]
[Round "2.20"]
[White "Barbu, Simon-Alexandru"]
[Black "Nedelcu, Teodor-Cosmin"]
[Result "1-0"]
[Annotator "ChessBase"]
[ECO "B23"]
[WhiteElo "2023"]
[BlackElo "2320"]
[PlyCount "117"]
[EventDate "2025.02.12"]
[EventCountry "ROU"]
[SourceTitle "playchess.com"]
[Source "ChessBase"]
[SourceQuality "1"]
[TimeControl "40/5400+30:900+30"]

1. e4 {[%emt 0:00:11]} c5 {[%emt 0:06:42]} 2. Nc3 {[%emt 0:01:05]} Nc6 {[%emt 0:00:14]} 3. Bb5 {[%emt 0:00:25]} e6 {[%emt 0:00:22]} 4. f4 {[%emt 0:10:17]} d5 {[%emt 0:00:56]} 5. Nf3 {[%emt 0:00:20]} Nf6 {[%emt 0:00:19]} 6. d3 {[%emt 0:01:34]} Be7 {[%emt 0:02:21]} 7. Bxc6+ {[%emt 0:13:16]} bxc6 {[%emt 0:00:54]} 8. O-O {[%emt 0:00:07]} O-O {[%emt 0:00:23]} 9. e5 {[%emt 0:06:57]} Nd7 {[%emt 0:03:40]} 10. b3 {[%emt 0:00:04]} Rb8 {[%emt 0:03:35]} 11. Qd2 {[%emt 0:04:05]} Ba6 {[%emt 0:03:15]} 12. Rd1 {[%emt 0:04:18]} Qc7 {[%emt 0:02:01]} 13. Ba3 {[%emt 0:02:38]} f6 {[%emt 0:03:08]} 14. Re1 {[%emt 0:03:59]} Rbe8 {[%emt 0:02:06]} 15. Na4 {[%emt 0:10:48]} Bb5 {[%emt 0:05:59]} 16. Nb2 {[%emt 0:01:57]} fxe5 {[%emt 0:03:35]} 17. fxe5 {[%emt 0:00:23]} Rxf3 {[%emt 0:18:30]} 18. gxf3 {[%emt 0:00:10]} Nxe5 {[%emt 0:00:07]} 19. Rf1 {[%emt 0:14:47]} Qb6 {[%emt 0:06:49]} 20. Qe3 {[%emt 0:05:05]} c4 {[%emt 0:22:28]} 21. Qxb6 {[%emt 0:00:11]} axb6 {[%emt 0:00:03]} 22. Bxe7 {[%emt 0:00:05]} Rxe7 {[%emt 0:00:03]} 23. Rae1 {[%emt 0:06:57]} Nf7 {[%emt 0:02:23]} 24. dxc4 {[%emt 0:00:30]} Ba6 {[%emt 0:01:14]} 25. Rf2 {[%emt 0:02:16]} dxc4 {[%emt 0:06:23]} 26. Nxc4 {[%emt 0:00:08]} Bxc4 {[%emt 0:00:03]} 27. bxc4 {[%emt 0:00:02]} Nd6 {[%emt 0:00:39]} 28. c5 {[%emt 0:00:13]} bxc5 {[%emt 0:00:01]} 29. Rd2 {[%emt 0:01:53]} Nf5 {[%emt 0:01:58]} 30. Re5 {[%emt 0:06:41]} c4 {[%emt 0:02:01]} 31. Rc5 {[%emt 0:01:10]} Rc7 {[%emt 0:00:05]} 32. a4 {[%emt 0:01:35]} Kf7 {[%emt 0:00:22]} 33. Rxc4 {[%emt 0:00:13]} Ra7 {[%emt 0:00:18]} 34. Kf2 {[%emt 0:00:18]} Ne7 {[%emt 0:01:01]} 35. Rd6 {[%emt 0:00:11]} e5 {[%emt 0:00:57]} 36. Ke1 {[%emt 0:01:01]} Ra5 {[%emt 0:00:20]} 37. Kd2 {[%emt 0:00:25]} g6 {[%emt 0:00:57]} 38. Kc3 {[%emt 0:00:58]} c5 {[%emt 0:00:32]} 39. Kd3 {[%emt 0:01:08]} Ra7 {[%emt 0:01:02]} 40. Ke4 {[%emt 0:00:00]} Nf5 {[%emt 0:00:00]} 41. Rd5 {[%emt 0:01:00]} Kf6 {[%emt 0:01:26]} 42. f4 {[%emt 0:04:26]} exf4 {[%emt 0:00:47]} 43. Kxf4 {[%emt 0:00:01]} g5+ {[%emt 0:02:37]} 44. Kf3 {[%emt 0:00:23]} Nd4+ {[%emt 0:00:23]} 45. Kf2 {[%emt 0:00:29]} Ne6 {[%emt 0:01:00]} 46. Re4 {[%emt 0:03:16]} Ra6 {[%emt 0:04:37]} 47. a5 {[%emt 0:00:13]} h5 {[%emt 0:00:32]} 48. Rde5 {[%emt 0:00:50]} Nd8 {[%emt 0:00:47]} 49. Rxc5 {[%emt 0:01:06]} Nb7 {[%emt 0:00:14]} 50. Rd5 {[%emt 0:00:04]} Rxa5 {[%emt 0:00:12]} 51. Rxa5 {[%emt 0:00:08]} Nxa5 {[%emt 0:00:01]} 52. Rb4 {[%emt 0:01:06]} h4 {[%emt 0:00:56]} 53. Kf3 {[%emt 0:00:07]} Kf7 {[%emt 0:00:17]} 54. Kg4 {[%emt 0:00:13]} Nc6 {[%emt 0:00:11]} 55. Rb7+ {[%emt 0:00:04]} Ke8 {[%emt 0:00:12]} 56. Kxg5 {[%emt 0:00:04]} Nd4 {[%emt 0:00:03]} 57. c3 {[%emt 0:00:46]} Nf3+ {[%emt 0:00:04]} 58. Kf4 {[%emt 0:00:16]} Nxh2 {[%emt 0:00:10]} 59. Rb1 {[%emt 0:00:03]} 1-0

[Event "Romanian Championship Open 2025"]
[Site "Craiova"]
[Date "2025.02.16"]
[Round "2.21"]
[White "Serban, Cristian-Stefan"]
[Black "Tamas, Christian-Arrydan"]
[Result "1-0"]
[Annotator "ChessBase"]
[ECO "E05"]
[WhiteElo "2295"]
[BlackElo "2016"]
[PlyCount "139"]
[EventDate "2025.02.12"]
[EventCountry "ROU"]
[SourceTitle "playchess.com"]
[Source "ChessBase"]
[SourceQuality "1"]
[TimeControl "40/5400+30:900+30"]

1. d4 {[%emt 0:00:09]} Nf6 {[%emt 0:00:07]} 2. c4 {[%emt 0:00:10]} e6 {[%emt 0:00:05]} 3. Nf3 {[%emt 0:00:11]} d5 {[%emt 0:00:09]} 4. g3 {[%emt 0:00:24]} Be7 {[%emt 0:00:05]} 5. Bg2 {[%emt 0:00:21]} O-O {[%emt 0:00:08]} 6. O-O {[%emt 0:00:10]} dxc4 {[%emt 0:00:06]} 7. Qc2 {[%emt 0:00:06]} b6 {[%emt 0:00:10]} 8. Ne5 {[%emt 0:05:51]} Qxd4 {[%emt 0:00:08]} 9. Bxa8 {[%emt 0:00:06]} Qxe5 {[%emt 0:00:06]} 10. Bf3 {[%emt 0:00:03]} Nd5 {[%emt 0:00:11]} 11. Qxc4 {[%emt 0:14:41]} Ba6 {[%emt 0:00:20]} 12. Qa4 {[%emt 0:00:05]} c5 {[%emt 0:00:50]} 13. Na3 {[%emt 0:02:52]} Qc7 {[%emt 0:00:26]} 14. Bd2 {[%emt 0:10:54]} Qc6 {[%emt 0:11:30]} 15. Qc2 {[%emt 0:10:34]} b5 {[%emt 0:00:20]} 16. Rac1 {[%emt 0:09:06]} Rc8 {[%emt 0:14:53]} 17. Qb1 {[%emt 0:12:10]} Qb6 {[%emt 0:05:12]} 18. Nc2 {[%emt 0:01:49]} Nc6 {[%emt 0:03:16]} 19. Bg2 {[%emt 0:01:05]} b4 {[%emt 0:16:35]} 20. Rfe1 {[%emt 0:00:16]} c4 {[%emt 0:01:43]} 21. Ne3 {[%emt 0:16:40]} Bc5 {[%emt 0:02:32]} 22. Nxd5 {[%emt 0:00:05]} Bxf2+ {[%emt 0:11:04]} 23. Kh1 {[%emt 0:00:03]} exd5 {[%emt 0:00:16]} 24. Rf1 {[%emt 0:00:11]} Ne5 {[%emt 0:14:55]} 25. Bxb4 {[%emt 0:06:18]} Qh6 {[%emt 0:09:23]} 26. Qf5 {[%emt 0:01:36]} Bxg3 {[%emt 0:00:10]} 27. Qh3 {[%emt 0:00:26]} Bf4 {[%emt 0:01:26]} 28. Rcd1 {[%emt 0:02:39]} Ng4 {[%emt 0:01:37]} 29. Qxh6 {[%emt 0:01:52]} Bxh6 {[%emt 0:00:24]} 30. Bh3 {[%emt 0:00:06]} Ne3 {[%emt 0:06:27]} 31. Bxc8 {[%emt 0:00:08]} Bxc8 {[%emt 0:00:02]} 32. Bc5 {[%emt 0:00:12]} Nxf1 {[%emt 0:00:46]} 33. Rxf1 {[%emt 0:00:04]} a6 {[%emt 0:00:49]} 34. Kg1 {[%emt 0:02:16]} f6 {[%emt 0:00:44]} 35. Rd1 {[%emt 0:01:57]} Be6 {[%emt 0:00:11]} 36. e3 {[%emt 0:00:08]} Kf7 {[%emt 0:00:17]} 37. Kf2 {[%emt 0:00:43]} g6 {[%emt 0:00:31]} 38. Ke1 {[%emt 0:00:13]} f5 {[%emt 0:00:10]} 39. Kd2 {[%emt 0:01:28]} Bg7 {[%emt 0:00:44]} 40. Kc2 {[%emt 0:00:00]} Be5 {[%emt 0:00:00]} 41. Bd4 {[%emt 0:03:15]} Bc7 {[%emt 0:01:02]} 42. b3 {[%emt 0:03:24]} g5 {[%emt 0:04:47]} 43. Kc3 {[%emt 0:01:32]} Kg6 {[%emt 0:08:04]} 44. Rd2 {[%emt 0:00:05]} h5 {[%emt 0:02:53]} 45. Kb4 {[%emt 0:00:51]} h4 {[%emt 0:00:36]} 46. Kc5 {[%emt 0:01:20]} g4 {[%emt 0:01:45]} 47. Kc6 {[%emt 0:00:04]} Ba5 {[%emt 0:00:25]} 48. Rb2 {[%emt 0:00:55]} c3 {[%emt 0:00:37]} 49. Rf2 {[%emt 0:02:56]} f4 {[%emt 0:00:30]} 50. Rxf4 {[%emt 0:00:05]} c2 {[%emt 0:00:13]} 51. Bb2 {[%emt 0:00:12]} Bc3 {[%emt 0:00:47]} 52. Bc1 {[%emt 0:02:56]} d4 {[%emt 0:00:27]} 53. exd4 {[%emt 0:00:57]} g3 {[%emt 0:00:06]} 54. hxg3 {[%emt 0:00:27]} hxg3 {[%emt 0:00:05]} 55. Rf3 {[%emt 0:00:15]} Be1 {[%emt 0:01:23]} 56. Re3 {[%emt 0:01:29]} Bf2 {[%emt 0:00:29]} 57. Rxe6+ {[%emt 0:00:09]} Kf5 {[%emt 0:00:31]} 58. Re5+ {[%emt 0:00:21]} Kg4 {[%emt 0:00:05]} 59. Rg5+ {[%emt 0:00:24]} Kf3 {[%emt 0:00:07]} 60. d5 {[%emt 0:00:23]} g2 {[%emt 0:00:24]} 61. Rxg2 {[%emt 0:01:01]} Kxg2 {[%emt 0:00:08]} 62. d6 {[%emt 0:00:02]} Bh4 {[%emt 0:01:09]} 63. d7 {[%emt 0:00:36]} Kf3 {[%emt 0:00:13]} 64. Kc7 {[%emt 0:01:21]} Ke2 {[%emt 0:00:21]} 65. d8=Q {[%emt 0:00:08]} Bxd8+ {[%emt 0:00:06]} 66. Kxd8 {[%emt 0:00:06]} Kd1 {[%emt 0:01:24]} 67. Bg5 {[%emt 0:00:05]} c1=Q {[%emt 0:00:55]} 68. Bxc1 {[%emt 0:00:06]} Kxc1 {[%emt 0:00:02]} 69. b4 {[%emt 0:00:05]} Kb2 {[%emt 0:00:07]} 70. a4 {[%emt 0:00:04]} 1-0